[Event "OeISM_Rapid_u12_Girls"]
[Site "AUT_girls_U12"]
[Date "2020.12.13"]
[Round "5"]
[White "Chessellis"]
[Black "Leefke Giselbrecht"]
[Result "1-0"]
[WhiteElo "1696"]
[BlackElo "1414"]
[Annotator "NA"]
[PlyCount "45"]
[EventDate "2020.12.13"]
[EventType "blitz"]
[TimeControl "600+3"]

1. e4 {[%emt 0:00:02]} d5 {[%emt 0:00:03]} 2. exd5 {[%emt 0:00:02]} Qxd5 {[%emt 0:00:02]} 3. Nc3 {[%emt 0:00:01]} Qd8 {[%emt 0:00:03]} 4. d4 {[%emt 0:00:08]} Nf6 {[%emt 0:00:03]} 5. Nf3 {[%emt 0:00:02]} Bf5 {[%emt 0:00:03]} 6. Bd3 {[%emt 0:00:13]} e6 {[%emt 0:00:03]} 7. O-O {[%emt 0:00:02]} Bd6 {[%emt 0:00:05]} 8. Re1 {[%emt 0:00:03]} O-O {[%emt 0:00:04]} 9. Bg5 {[%emt 0:00:04]} Nbd7 {[%emt 0:00:03]} 10. Bxf5 {[%emt 0:00:10]} exf5 {[%emt 0:00:04]} 11. Nd5 {[%emt 0:00:07]} c6 {[%emt 0:00:09]} 12. Nxf6+ {[%emt 0:00:06]} Nxf6 {[%emt 0:00:02]} 13. Qd3 {[%emt 0:00:05]} Be7 {[%emt 0:00:16]} 14. Qxf5 {[%emt 0:00:13]} Qd6 {[%emt 0:00:12]} 15. c3 {[%emt 0:00:20]} Rfe8 {[%emt 0:00:09]} 16. Re2 {[%emt 0:00:14]} h6 {[%emt 0:00:07]} 17. Bh4 {[%emt 0:00:08]} Nd5 {[%emt 0:00:35]} 18. Rae1 {[%emt 0:00:16]} Nf6 {[%emt 0:00:43]} 19. Bxf6 {[%emt 0:01:02]} gxf6 {[%emt 0:00:20]} 20. Nh4 {[%emt 0:00:21]} Rad8 {[%emt 0:01:14]} 21. Qg4+ {[%emt 0:00:13]} Kh8 {[%emt 0:00:06]} 22. Nf5 {[%emt 0:00:08]} Qd7 {[%emt 0:00:10]} 23. Qg7# {[%emt 0:00:05] Mate Mate} 1-0

[Event "OeISM_Rapid_u12_Girls"]
[Site "AUT_girls_U12"]
[Date "2020.12.13"]
[Round "5"]
[White "BiancaD"]
[Black "Efiona2008"]
[Result "1-0"]
[WhiteElo "1593"]
[BlackElo "1406"]
[Annotator "NA"]
[PlyCount "95"]
[EventDate "2020.12.13"]
[EventType "blitz"]
[TimeControl "600+3"]

1. e4 {[%emt 0:00:01]} e5 {[%emt 0:00:02]} 2. Nf3 {[%emt 0:00:01]} Nc6 {[%emt 0:00:03]} 3. Bc4 {[%emt 0:00:01]} Bc5 {[%emt 0:00:04]} 4. O-O {[%emt 0:00:03]} Nf6 {[%emt 0:00:04]} 5. Nc3 {[%emt 0:00:04]} Nd4 {[%emt 0:00:09]} 6. Nxd4 {[%emt 0:00:02]} exd4 {[%emt 0:00:08]} 7. Nd5 {[%emt 0:00:05]} Nxe4 {[%emt 0:00:08]} 8. Re1 {[%emt 0:00:05]} O-O {[%emt 0:00:12]} 9. Rxe4 {[%emt 0:00:03]} b6 {[%emt 0:00:06]} 10. c3 {[%emt 0:00:16]} Bb7 {[%emt 0:00:12]} 11. cxd4 {[%emt 0:00:04]} Bb4 {[%emt 0:00:10]} 12. Qe2 {[%emt 0:00:14]} a6 {[%emt 0:00:12]} 13. Nxb4 {[%emt 0:00:02]} Bxe4 {[%emt 0:00:10]} 14. Qxe4 {[%emt 0:00:01]} Re8 {[%emt 0:00:15]} 15. Qc2 {[%emt 0:00:23]} b5 {[%emt 0:00:14]} 16. Bd3 {[%emt 0:00:06]} g6 {[%emt 0:00:03]} 17. h3 {[%emt 0:00:03]} a5 {[%emt 0:00:31]} 18. Nd5 {[%emt 0:00:11]} b4 {[%emt 0:00:18]} 19. Be4 {[%emt 0:00:04]} Rb8 {[%emt 0:00:12]} 20. d3 {[%emt 0:00:12]} c6 {[%emt 0:00:24]} 21. Nf4 {[%emt 0:00:23]} Qc7 {[%emt 0:00:24]} 22. d5 {[%emt 0:00:13]} Rbc8 {[%emt 0:00:26]} 23. dxc6 {[%emt 0:00:06]} dxc6 {[%emt 0:00:04]} 24. Be3 {[%emt 0:00:16]} c5 {[%emt 0:00:18]} 25. Rc1 {[%emt 0:00:06]} c4 {[%emt 0:00:26]} 26. Qxc4 {[%emt 0:00:03]} Qxc4 {[%emt 0:00:05]} 27. Rxc4 {[%emt 0:00:02]} Rxc4 {[%emt 0:00:09]} 28. dxc4 {[%emt 0:00:03]} Rxe4 {[%emt 0:00:02]} 29. c5 {[%emt 0:00:02]} Kf8 {[%emt 0:00:09]} 30. Kf1 {[%emt 0:00:04]} Ke7 {[%emt 0:00:10]} 31. Ke2 {[%emt 0:00:02]} Rc4 {[%emt 0:00:09]} 32. Kd3 {[%emt 0:00:02]} Rxf4 {[%emt 0:00:31]} 33. Bxf4 {[%emt 0:00:03]} Kd7 {[%emt 0:00:02]} 34. Kd4 {[%emt 0:00:02]} Kc6 {[%emt 0:00:04]} 35. g4 {[%emt 0:00:02]} a4 {[%emt 0:00:17]} 36. f3 {[%emt 0:00:12]} f6 {[%emt 0:00:20]} 37. h4 {[%emt 0:00:05]} h6 {[%emt 0:00:08]} 38. g5 {[%emt 0:00:05]} fxg5 {[%emt 0:00:02]} 39. hxg5 {[%emt 0:00:02]} h5 {[%emt 0:00:02]} 40. Bg3 {[%emt 0:00:04]} Kd7 {[%emt 0:00:17]} 41. Kd5 {[%emt 0:00:03]} Kc8 {[%emt 0:00:04]} 42. Kc6 {[%emt 0:00:02]} Kd8 {[%emt 0:00:07]} 43. Kb7 {[%emt 0:00:02]} Kd7 {[%emt 0:00:02]} 44. c6+ {[%emt 0:00:01]} Ke6 {[%emt 0:00:01]} 45. c7 {[%emt 0:00:02]} Kf5 {[%emt 0:00:01]} 46. c8=Q+ {[%emt 0:00:02]} Kxg5 {[%emt 0:00:04]} 47. f4+ {[%emt 0:00:04]} Kh6 {[%emt 0:00:04]} 48. Qh8# {[%emt 0:00:01] Mate Mate} 1-0

[Event "OeISM_Rapid_u12_Girls"]
[Site "AUT_girls_U12"]
[Date "2020.12.13"]
[Round "5"]
[White "LBchessqueen"]
[Black "HarryPotter09"]
[Result "1-0"]
[WhiteElo "1583"]
[BlackElo "1459"]
[Annotator "NA"]
[PlyCount "73"]
[EventDate "2020.12.13"]
[EventType "blitz"]
[TimeControl "600+3"]

1. c4 {[%emt 0:00:13]} e5 {[%emt 0:00:04]} 2. d3 {[%emt 0:00:02]} Nf6 {[%emt 0:00:03]} 3. g3 {[%emt 0:00:03]} d5 {[%emt 0:00:02]} 4. cxd5 {[%emt 0:00:02]} Nxd5 {[%emt 0:00:02]} 5. Nc3 {[%emt 0:00:03]} Nc6 {[%emt 0:00:10]} 6. Bg2 {[%emt 0:00:03]} Be6 {[%emt 0:00:06]} 7. Nf3 {[%emt 0:00:06]} f6 {[%emt 0:00:04]} 8. O-O {[%emt 0:00:04]} Qd7 {[%emt 0:00:03]} 9. Bd2 {[%emt 0:00:04]} Bh3 {[%emt 0:00:11]} 10. Nxd5 {[%emt 0:00:02]} Bxg2 {[%emt 0:00:09]} 11. Nxc7+ {[%emt 0:00:07]} Qxc7 {[%emt 0:00:06]} 12. Kxg2 {[%emt 0:00:02]} Bc5 {[%emt 0:00:08]} 13. Rc1 {[%emt 0:00:03]} Bb6 {[%emt 0:00:04]} 14. b4 {[%emt 0:00:10]} a6 {[%emt 0:00:17]} 15. a4 {[%emt 0:00:06]} Qd6 {[%emt 0:00:17]} 16. Qb3 {[%emt 0:00:35]} Nd4 {[%emt 0:00:42]} 17. Nxd4 {[%emt 0:00:06]} Bxd4 {[%emt 0:00:04]} 18. Bc3 {[%emt 0:00:10]} Bxc3 {[%emt 0:00:10]} 19. Rxc3 {[%emt 0:00:09]} Qd4 {[%emt 0:00:41]} 20. Qe6+ {[%emt 0:00:08]} Kf8 {[%emt 0:00:11]} 21. Rfc1 {[%emt 0:00:07]} Qd8 {[%emt 0:00:46]} 22. Rc8 {[%emt 0:00:15]} Rxc8 {[%emt 0:00:04]} 23. Rxc8 {[%emt 0:00:03]} Qxc8 {[%emt 0:00:09]} 24. Qxc8+ {[%emt 0:00:01]} Kf7 {[%emt 0:00:02]} 25. Qxh8 {[%emt 0:00:02]} Kg6 {[%emt 0:00:01]} 26. Qc8 {[%emt 0:00:05]} b5 {[%emt 0:00:03]} 27. Qxa6 {[%emt 0:00:03]} bxa4 {[%emt 0:00:01]} 28. Qxa4 {[%emt 0:00:02]} h6 {[%emt 0:00:03]} 29. b5 {[%emt 0:00:01]} Kf5 {[%emt 0:00:03]} 30. b6 {[%emt 0:00:02]} g5 {[%emt 0:00:01]} 31. b7 {[%emt 0:00:01]} h5 {[%emt 0:00:01]} 32. b8=Q {[%emt 0:00:02]} h4 {[%emt 0:00:02]} 33. Qe4+ {[%emt 0:00:05]} Ke6 {[%emt 0:00:05]} 34. Qb6+ {[%emt 0:00:02]} Kf7 {[%emt 0:00:02]} 35. Qc7+ {[%emt 0:00:06]} Ke8 {[%emt 0:00:03]} 36. Qeh7 {[%emt 0:00:03]} Kf8 {[%emt 0:00:03]} 37. Qh8# {[%emt 0:00:01] Mate Mate} 1-0

[Event "OeISM_Rapid_u12_Girls"]
[Site "AUT_girls_U12"]
[Date "2020.12.13"]
[Round "5"]
[White "Athene"]
[Black "Jaguarjungle"]
[Result "0-1"]
[WhiteElo "1579"]
[BlackElo "1421"]
[Annotator "NA"]
[PlyCount "52"]
[EventDate "2020.12.13"]
[EventType "blitz"]
[TimeControl "600+3"]

1. e4 {[%emt 0:00:07]} e5 {[%emt 0:00:02]} 2. Nf3 {[%emt 0:00:02]} Nc6 {[%emt 0:00:01]} 3. d4 {[%emt 0:00:02]} exd4 {[%emt 0:00:17]} 4. Bc4 {[%emt 0:00:03]} Bc5 {[%emt 0:00:05]} 5. c3 {[%emt 0:00:03]} dxc3 {[%emt 0:00:11]} 6. Nxc3 {[%emt 0:00:00]} Nge7 {[%emt 0:00:09]} 7. O-O {[%emt 0:00:02]} O-O {[%emt 0:00:04]} 8. Bg5 {[%emt 0:00:06]} h6 {[%emt 0:00:03]} 9. Bh4 {[%emt 0:00:02]} d6 {[%emt 0:00:06]} 10. Re1 {[%emt 0:00:03]} Bg4 {[%emt 0:00:03]} 11. h3 {[%emt 0:00:04]} Bh5 {[%emt 0:00:02]} 12. Qd3 {[%emt 0:00:04]} Qd7 {[%emt 0:00:04]} 13. Rad1 {[%emt 0:00:02]} b6 {[%emt 0:00:03]} 14. Rd2 {[%emt 0:00:18]} a5 {[%emt 0:00:04]} 15. e5 {[%emt 0:00:05]} Rfe8 {[%emt 0:00:18]} 16. exd6 {[%emt 0:00:07]} Bxd6 {[%emt 0:00:13]} 17. Ne5 {[%emt 0:00:18]} Nxe5 {[%emt 0:00:07]} 18. Qd4 {[%emt 0:00:12]} Nxc4 {[%emt 0:00:17]} 19. Qxc4 {[%emt 0:00:04]} Rad8 {[%emt 0:00:18]} 20. Nd5 {[%emt 0:00:09]} c6 {[%emt 0:00:27]} 21. Nxb6 {[%emt 0:00:15]} Qc7 {[%emt 0:00:15]} 22. Bxe7 {[%emt 0:00:07]} Bh2+ {[%emt 0:00:14]} 23. Kf1 {[%emt 0:00:11]} Rxd2 {[%emt 0:00:03]} 24. Bd6 {[%emt 0:00:34]} Rxe1+ {[%emt 0:00:13]} 25. Kxe1 {[%emt 0:00:05]} Qxd6 {[%emt 0:00:04]} 26. Qc3 {[%emt 0:00:15]} Rd1# {[%emt 0:00:10] Mate Mate} 0-1

[Event "OeISM_Rapid_u12_Girls"]
[Site "AUT_girls_U12"]
[Date "2020.12.13"]
[Round "5"]
[White "Orchidee14"]
[Black "Ju_Fa29"]
[Result "0-1"]
[WhiteElo "1367"]
[BlackElo "1735"]
[Annotator "NA"]
[PlyCount "32"]
[EventDate "2020.12.13"]
[EventType "blitz"]
[TimeControl "600+3"]

1. e4 {[%emt 0:00:14]} e5 {[%emt 0:00:02]} 2. Nf3 {[%emt 0:00:03]} Nc6 {[%emt 0:00:03]} 3. d4 {[%emt 0:00:03]} exd4 {[%emt 0:00:11]} 4. Nxd4 {[%emt 0:00:02]} Nf6 {[%emt 0:00:05]} 5. Nc3 {[%emt 0:00:23]} Bc5 {[%emt 0:00:08]} 6. Nxc6 {[%emt 0:00:16]} bxc6 {[%emt 0:00:06]} 7. Bg5 {[%emt 0:00:16]} Be7 {[%emt 0:00:14]} 8. e5 {[%emt 0:00:08]} Nd5 {[%emt 0:00:20]} 9. Bxe7 {[%emt 0:00:09]} Qxe7 {[%emt 0:00:11]} 10. Nxd5 {[%emt 0:00:14]} Qxe5+ {[%emt 0:00:19]} 11. Ne3 {[%emt 0:00:11]} Qxb2 {[%emt 0:00:18]} 12. Qg4 {[%emt 0:00:12]} Qxa1+ {[%emt 0:00:14]} 13. Nd1 {[%emt 0:00:04]} O-O {[%emt 0:00:22]} 14. Bd3 {[%emt 0:00:06]} Re8+ {[%emt 0:00:09]} 15. Kf1 {[%emt 0:00:06]} d6 {[%emt 0:00:31]} 16. Qh4 {[%emt 0:00:08]} Qxd1# {[%emt 0:00:09] Mate Mate} 0-1

[Event "OeISM_Rapid_u12_Girls"]
[Site "AUT_girls_U12"]
[Date "2020.12.13"]
[Round "6"]
[White "LBchessqueen"]
[Black "Athene"]
[Result "1-0"]
[WhiteElo "1594"]
[BlackElo "1511"]
[Annotator "NA"]
[PlyCount "53"]
[EventDate "2020.12.13"]
[EventType "blitz"]
[TimeControl "600+3"]

1. c4 {[%emt 0:00:13]} c5 {[%emt 0:00:14]} 2. d3 {[%emt 0:00:02]} Nc6 {[%emt 0:00:03]} 3. g3 {[%emt 0:00:02]} d6 {[%emt 0:00:02]} 4. Bg2 {[%emt 0:00:02]} Nf6 {[%emt 0:00:05]} 5. Nc3 {[%emt 0:00:02]} g6 {[%emt 0:00:10]} 6. Bg5 {[%emt 0:00:04]} Bg7 {[%emt 0:00:02]} 7. Qd2 {[%emt 0:00:02]} d5 {[%emt 0:00:06]} 8. Nxd5 {[%emt 0:00:30]} Nxd5 {[%emt 0:00:04]} 9. Bxd5 {[%emt 0:00:03]} f6 {[%emt 0:00:15]} 10. Bh6 {[%emt 0:00:10]} Bxh6 {[%emt 0:00:22]} 11. Qxh6 {[%emt 0:00:02]} Qd6 {[%emt 0:00:08]} 12. Qg7 {[%emt 0:00:09]} Rf8 {[%emt 0:00:07]} 13. Qxh7 {[%emt 0:00:04]} Be6 {[%emt 0:00:03]} 14. Qxg6+ {[%emt 0:00:04]} Kd7 {[%emt 0:00:07]} 15. Bxe6+ {[%emt 0:00:08]} Qxe6 {[%emt 0:00:03]} 16. Nf3 {[%emt 0:00:08]} Rg8 {[%emt 0:00:05]} 17. Qe4 {[%emt 0:00:07]} Qxe4 {[%emt 0:00:10]} 18. dxe4 {[%emt 0:00:01]} e5 {[%emt 0:00:06]} 19. O-O-O+ {[%emt 0:00:04]} Kc7 {[%emt 0:00:04]} 20. Rd5 {[%emt 0:00:10]} b6 {[%emt 0:00:07]} 21. Rhd1 {[%emt 0:00:03]} Nd4 {[%emt 0:00:07]} 22. Nxd4 {[%emt 0:00:03]} cxd4 {[%emt 0:00:04]} 23. e3 {[%emt 0:00:01]} dxe3 {[%emt 0:00:13]} 24. fxe3 {[%emt 0:00:02]} Rh8 {[%emt 0:00:06]} 25. Rd7+ {[%emt 0:00:02]} Kc6 {[%emt 0:00:04]} 26. b4 {[%emt 0:00:09]} Rxh2 {[%emt 0:00:05]} 27. R1d6# {[%emt 0:00:02] Mate Mate} 1-0

[Event "OeISM_Rapid_u12_Girls"]
[Site "AUT_girls_U12"]
[Date "2020.12.13"]
[Round "6"]
[White "HarryPotter09"]
[Black "Leefke Giselbrecht"]
[Result "1-0"]
[WhiteElo "1448"]
[BlackElo "1408"]
[Annotator "NA"]
[PlyCount "43"]
[EventDate "2020.12.13"]
[EventType "blitz"]
[TimeControl "600+3"]

1. e4 {[%emt 0:00:03]} c5 {[%emt 0:00:02]} 2. Nf3 {[%emt 0:00:02]} Nc6 {[%emt 0:00:02]} 3. d4 {[%emt 0:00:02]} cxd4 {[%emt 0:00:02]} 4. Nxd4 {[%emt 0:00:04]} g6 {[%emt 0:00:02]} 5. Nc3 {[%emt 0:00:02]} Bg7 {[%emt 0:00:03]} 6. Be3 {[%emt 0:00:03]} Nf6 {[%emt 0:00:03]} 7. f3 {[%emt 0:00:02]} d5 {[%emt 0:00:14]} 8. exd5 {[%emt 0:00:12]} Nxd5 {[%emt 0:00:05]} 9. Nxd5 {[%emt 0:00:04]} Qxd5 {[%emt 0:00:03]} 10. Nxc6 {[%emt 0:00:10]} Qxc6 {[%emt 0:00:11]} 11. Qd2 {[%emt 0:00:11]} O-O {[%emt 0:00:02]} 12. O-O-O {[%emt 0:00:12]} Qf6 {[%emt 0:00:19]} 13. Bd4 {[%emt 0:00:12]} e5 {[%emt 0:00:12]} 14. Bc5 {[%emt 0:00:07]} Re8 {[%emt 0:00:15]} 15. Bb5 {[%emt 0:00:04]} e4 {[%emt 0:00:14]} 16. Bd4 {[%emt 0:00:19]} e3 {[%emt 0:00:23]} 17. Bxf6 {[%emt 0:00:08]} exd2+ {[%emt 0:00:04]} 18. Rxd2 {[%emt 0:00:03]} Re6 {[%emt 0:00:11]} 19. Rd8+ {[%emt 0:00:10]} Bf8 {[%emt 0:00:03]} 20. Bg5 {[%emt 0:00:25]} Re5 {[%emt 0:00:11]} 21. Bh6 {[%emt 0:00:07]} Rxb5 {[%emt 0:00:08]} 22. Rxf8# {[%emt 0:00:05] Mate Mate} 1-0